[Event "CZE-ch U12 Open 2023"]
[Site "Teplice"]
[Date "2023.03.14"]
[Round "5.9"]
[White "Maly, Jiri"]
[Black "Migalko, Dmitriy"]
[Result "1/2-1/2"]
[ECO "B40"]
[WhiteElo "1520"]
[BlackElo "1581"]
[Annotator "NA RC COMBH"]
[PlyCount "79"]
[EventDate "2023.03.09"]
[EventType "swiss"]
[EventCountry "CZE"]
[SourceTitle "playchess.com"]
[Source "ChessBase"]
[SourceQuality "1"]
[TimeControl "40/5400+30:1800+30"]

1. e4 {[%emt 0:00:13]} c5 {[%emt 0:00:03]} 2. Nf3 {[%emt 0:00:14]} e6 {[%emt 0:00:07]} 3. c3 {[%emt 0:00:35]} Nf6 {[%emt 0:00:33]} 4. e5 {[%emt 0:00:44]} Nd5 {[%emt 0:00:13]} 5. d4 {[%emt 0:00:40]} cxd4 {[%emt 0:00:34]} 6. cxd4 {[%emt 0:00:20]} Nc6 {[%emt 0:00:18]} 7. Bd2 {[%emt 0:06:16]} Qb6 {[%emt 0:03:13]} 8. Bc3 {[%emt 0:18:59]} Nxc3 {[%emt 0:02:24]} 9. Nxc3 {[%emt 0:02:19]} Qxb2 {[%emt 0:00:37]} 10. Rc1 {[%emt 0:02:10]} Bb4 {[%emt 0:02:14]} 11. Qd2 {[%emt 0:02:42]} Qxd2+ {[%emt 0:00:58]} 12. Kxd2 {[%emt 0:01:05]} d6 {[%emt 0:04:29]} 13. Bd3 {[%emt 0:01:43]} dxe5 {[%emt 0:01:42]} 14. dxe5 {[%emt 0:00:53]} Ke7 {[%emt 0:00:30]} 15. Rhd1 {[%emt 0:01:22]} b6 {[%emt 0:01:43]} 16. Ke2 {[%emt 0:02:31]} Bxc3 {[%emt 0:03:50]} 17. Rxc3 {[%emt 0:00:52]} Bb7 {[%emt 0:01:03]} 18. Bb5 {[%emt 0:06:14]} Rac8 {[%emt 0:09:10]} 19. Rdc1 {[%emt 0:02:20]} Kd7 {[%emt 0:08:17]} 20. Rd1+ {[%emt 0:10:21]} Ke7 {[%emt 0:00:17]} 21. Rdc1 {[%emt 0:00:35]} Nb8 {[%emt 0:02:35]} 22. Rc7+ {[%emt 0:04:24]} Kd8 {[%emt 0:00:08]} 23. Rxb7 {[%emt 0:01:44]} Rxc1 {[%emt 0:00:16]} 24. Rxb8+ {[%emt 0:00:11]} Rc8 {[%emt 0:00:04]} 25. Rxc8+ {[%emt 0:00:42]} Kxc8 {[%emt 0:00:07]} 26. a4 {[%emt 0:06:20]} h6 {[%emt 0:01:28]} 27. Nd4 {[%emt 0:02:37]} Rd8 {[%emt 0:03:11]} 28. Ke3 {[%emt 0:01:35]} Kb7 {[%emt 0:00:55]} 29. f4 {[%emt 0:04:07]} a6 {[%emt 0:00:21]} 30. Be2 {[%emt 0:00:35]} Rc8 {[%emt 0:01:57]} 31. Kd2 {[%emt 0:01:50]} Rc5 {[%emt 0:01:29]} 32. Nb3 {[%emt 0:02:12]} Rd5+ {[%emt 0:01:53]} 33. Ke3 {[%emt 0:00:34]} Ka7 {[%emt 0:01:26]} 34. Bf3 {[%emt 0:01:38]} Rd8 {[%emt 0:00:46]} 35. Nd4 {[%emt 0:00:56]} Re8 {[%emt 0:02:06]} 36. Nc6+ {[%emt 0:01:01]} Kb7 {[%emt 0:00:34]} 37. Nb4+ {[%emt 0:00:38]} Ka7 {[%emt 0:00:17]} 38. Nc6+ {[%emt 0:00:08]} Kb7 {[%emt 0:00:04]} 39. Nb4+ {[%emt 0:00:22]} Ka7 {[%emt 0:00:06]} 40. Nc6+ {[%emt 0:00:13]} 1/2-1/2

[Event "CZE-ch U12 Open 2023"]
[Site "Teplice"]
[Date "2023.03.14"]
[Round "5.10"]
[White "Tejnor, Martin"]
[Black "Kupka, Alexandr"]
[Result "1/2-1/2"]
[ECO "C44"]
[WhiteElo "1360"]
[BlackElo "1220"]
[Annotator "NA RC COMBH"]
[PlyCount "147"]
[EventDate "2023.03.09"]
[EventType "swiss"]
[EventCountry "CZE"]
[SourceTitle "playchess.com"]
[Source "ChessBase"]
[SourceQuality "1"]
[TimeControl "40/5400+30:1800+30"]

1. e4 {[%emt 0:00:07]} e5 {[%emt 0:00:03]} 2. Nf3 {[%emt 0:00:16]} Nc6 {[%emt 0:00:12]} 3. d4 {[%emt 0:00:05]} exd4 {[%emt 0:00:04]} 4. Nxd4 {[%emt 0:00:00]} Nf6 {[%emt 0:00:00]} 5. Nc3 {[%emt 0:00:00]} Bb4 {[%emt 0:00:00]} 6. Nxc6 {[%emt 0:00:25]} bxc6 {[%emt 0:00:02]} 7. Bd3 {[%emt 0:00:08]} d5 {[%emt 0:00:15]} 8. exd5 {[%emt 0:00:07]} cxd5 {[%emt 0:00:12]} 9. O-O {[%emt 0:00:19]} O-O {[%emt 0:00:04]} 10. h3 {[%emt 0:00:05]} c6 {[%emt 0:00:10]} 11. Qf3 {[%emt 0:00:28]} Bd6 {[%emt 0:00:45]} 12. Bf4 {[%emt 0:00:19]} Rb8 {[%emt 0:01:26]} 13. b3 {[%emt 0:01:31]} Re8 {[%emt 0:02:43]} 14. Rfe1 {[%emt 0:05:30]} Rb4 {[%emt 0:05:22]} 15. Bxd6 {[%emt 0:02:40]} Qxd6 {[%emt 0:00:15]} 16. Qg3 {[%emt 0:11:53]} Rxe1+ {[%emt 0:04:41]} 17. Rxe1 {[%emt 0:00:13]} Qxg3 {[%emt 0:00:13]} 18. fxg3 {[%emt 0:00:07]} Be6 {[%emt 0:00:25]} 19. a3 {[%emt 0:00:41]} Rb8 {[%emt 0:00:59]} 20. b4 {[%emt 0:02:52]} Kf8 {[%emt 0:08:15]} 21. Na4 {[%emt 0:03:00]} Nh5 {[%emt 0:01:32]} 22. Kf2 {[%emt 0:01:16]} g6 {[%emt 0:00:43]} 23. Nc5 {[%emt 0:01:28]} Re8 {[%emt 0:02:19]} 24. Ba6 {[%emt 0:04:33]} Ke7 {[%emt 0:02:25]} 25. Bb7 {[%emt 0:14:03]} Kd6 {[%emt 0:01:14]} 26. Re3 {[%emt 0:02:37]} Nf6 {[%emt 0:03:06]} 27. Rc3 {[%emt 0:02:10]} d4 {[%emt 0:03:02]} 28. Rd3 {[%emt 0:02:00]} Bd5 {[%emt 0:18:22]} 29. Rxd4 {[%emt 0:03:31]} Ne4+ {[%emt 0:00:00]} 30. Nxe4+ {[%emt 0:00:43]} Rxe4 {[%emt 0:00:02]} 31. Rd2 {[%emt 0:03:22]} Rc4 {[%emt 0:06:23]} 32. Ba6 {[%emt 0:01:02]} Rc3 {[%emt 0:00:55]} 33. a4 {[%emt 0:00:09]} Ke5 {[%emt 0:09:14]} 34. Bf1 {[%emt 0:17:46]} Ra3 {[%emt 0:11:45]} 35. a5 {[%emt 0:00:59]} c5 {[%emt 0:05:47]} 36. c4 {[%emt 0:02:29]} Bc6 {[%emt 0:01:26]} 37. b5 {[%emt 0:00:23]} Be4 {[%emt 0:01:00]} 38. a6 {[%emt 0:01:36]} Bf5 {[%emt 0:01:00]} 39. Be2 {[%emt 0:00:52]} Be6 {[%emt 0:00:24]} 40. Rd3 {[%emt 0:04:31]} Ra2 {[%emt 0:00:55]} 41. Kf3 {[%emt 0:31:35]} Ra4 {[%emt 0:34:38]} 42. Rc3 {[%emt 0:01:21]} Kd4 {[%emt 0:01:02]} 43. Rc2 {[%emt 0:00:11]} Ra3+ {[%emt 0:03:22]} 44. Kf2 {[%emt 0:00:36]} Ke5 {[%emt 0:00:31]} 45. Bf3 {[%emt 0:00:57]} Kd6 {[%emt 0:00:37]} 46. Ke2 {[%emt 0:00:48]} Kc7 {[%emt 0:00:37]} 47. g4 {[%emt 0:01:10]} Ra2 {[%emt 0:00:50]} 48. Rxa2 {[%emt 0:01:20]} Bxc4+ {[%emt 0:00:02]} 49. Kd2 {[%emt 0:00:01]} Bxa2 {[%emt 0:00:10]} 50. Be2 {[%emt 0:00:01]} Kb6 {[%emt 0:00:38]} 51. Kc3 {[%emt 0:00:12]} Be6 {[%emt 0:00:34]} 52. g5 {[%emt 0:00:35]} Bd7 {[%emt 0:00:24]} 53. Bc4 {[%emt 0:00:58]} Be6 {[%emt 0:03:05]} 54. Bd3 {[%emt 0:00:27]} Bd7 {[%emt 0:00:50]} 55. Bc4 {[%emt 0:00:05]} Bxb5 {[%emt 0:00:22]} 56. Bxf7 Kxa6 {[%emt 0:00:43]} 57. h4 {[%emt 0:01:05]} Kb6 {[%emt 0:00:15]} 58. g4 {[%emt 0:00:25]} a5 {[%emt 0:00:52]} 59. h5 {[%emt 0:00:29]} a4 {[%emt 0:00:17]} 60. hxg6 {[%emt 0:00:13]} hxg6 {[%emt 0:00:02]} 61. Bxg6 {[%emt 0:00:34]} c4 {[%emt 0:00:21]} 62. Bb1 {[%emt 0:00:00]} Bd7 {[%emt 0:00:43]} 63. g6 {[%emt 0:01:30]} Bxg4 {[%emt 0:00:20]} 64. Ba2 {[%emt 0:00:13]} Bf5 {[%emt 0:00:55]} 65. g7 {[%emt 0:00:14]} Bh7 {[%emt 0:00:06]} 66. Bxc4 {[%emt 0:00:49]} Kc6 {[%emt 0:00:25]} 67. Kd4 {[%emt 0:00:26]} Kd6 {[%emt 0:00:32]} 68. Ba2 {[%emt 0:00:28]} a3 {[%emt 0:00:17]} 69. Bb3 {[%emt 0:00:18]} Kc6 {[%emt 0:01:20]} 70. Bd5+ {[%emt 0:03:34]} Kb5 {[%emt 0:01:21]} 71. Kc3 {[%emt 0:00:50]} Kc5 {[%emt 0:00:09]} 72. Ba2 {[%emt 0:00:08]} Kb5 {[%emt 0:00:34]} 73. Kb3 {[%emt 0:00:48]} Kc5 {[%emt 0:00:10]} 74. Kc3 {[%emt 0:00:10]} 1/2-1/2

[Event "CZE-ch U12 Open 2023"]
[Site "Teplice"]
[Date "2023.03.14"]
[Round "5.12"]
[White "Sudrich, Radek"]
[Black "Mazurek, Richard"]
[Result "1/2-1/2"]
[ECO "E81"]
[WhiteElo "2054"]
[BlackElo "1137"]
[Annotator "TA"]
[PlyCount "133"]
[EventDate "2023.03.09"]
[EventType "swiss"]
[EventCountry "CZE"]
[SourceTitle "playchess.com"]
[Source "ChessBase"]
[SourceQuality "1"]
[TimeControl "40/5400+30:1800+30"]

{[%evp 14,133,41,39,68,74,106,104,114,97,104,75,81,65,91,94,175,85,245,268,408,225,225,98,451,437,352,348,293,290,304,288,332,334,354,295,290,287,397,418,569,555,522,310,306,306,307,290,296,310,297,298,279,210,210,93,87,-14,47,0,90,54,81,0,68,0,19,0,32,8,26,0,0,0,0,0,12,0,17,0,0,0,128,129,127,131,134,121,134,133,134,128,144,130,129,133,132,110,121,107,255,257,770,708,743,650,817,251,3679,2000,1444,1380,29944,12712,5490,5490,29964,20,18,15,15,0]} 1. d4 {[%emt 0:00:34]} Nf6 {[%emt 0:00:06]} 2. c4 {[%emt 0:00:47]} g6 {[%emt 0:00:15]} 3. Nc3 {[%emt 0:01:49]} Bg7 {[%emt 0:00:06]} 4. e4 {[%emt 0:01:56]} d6 {[%emt 0:00:07]} 5. f3 {[%emt 0:02:59]} O-O {[%emt 0:01:58]} 6. Be3 {[%emt 0:02:59]} Nbd7 {[%emt 0:02:27]} 7. Bd3 {[%emt 0:02:15]} e5 {[%emt 0:00:19]} 8. d5 {[%emt 0:00:32]} Re8 {[%emt 0:03:13] E87: King's Indian: Sämisch: 6...e5 7 d5.} 9. Nge2 {[%emt 0:02:30]} Nf8 {[%emt 0:00:08]} 10. Qd2 {[%emt 0:01:43] [#]} h5 $146 {[%emt 0:10:09] White is better.} ({Predecessor:} 10... Bd7 11. O-O-O c6 12. Kb1 cxd5 13. cxd5 b6 14. Rc1 Rc8 15. Nb5 Bxb5 16. Bxb5 Rxc1+ 17. Rxc1 {1-0 Jakavonis,G-Vasiliauskas,D Panevezys op-B 24th 2011 (7)}) 11. O-O-O {[%emt 0:02:31]} c6 {[%emt 0:00:06]} 12. h3 {[%emt 0:00:39]} cxd5 {[%emt 0:00:11]} 13. exd5 {[%emt 0:00:19]} a6 {[%emt 0:01:45][%cal Ob7b5]} 14. g4 {[%emt 0:01:38]} Bd7 {[%emt 0:00:28]} (14... b5 $16) 15. Rdg1 {[%emt 0:01:12]} (15. Ng3 $18 {and White stays clearly on top.}) 15... hxg4 $2 {[%emt 0:00:22]} (15... h4 $16) 16. hxg4 $18 {[%emt 0:00:13]} N6h7 {[%emt 0:01:00]} (16... e4 $142) 17. Bh6 {[%emt 0:02:00]} (17. Ne4 $142) 17... Bxh6 {[%emt 0:02:04]} 18. Qxh6 {[%emt 0:00:19]} (18. Rxh6 $18 {is the precise move to win. And now Ne4 would win.} b5 19. c5 (19. cxb5 axb5 20. Kb1 Qg5 $16)) 18... Qf6 $2 {[%emt 0:00:06][%mdl 8192]} (18... Qg5+ $16 {is a better chance.} 19. Qxg5 Nxg5) 19. Ne4 {[%emt 0:00:33]} Qg7 {[%emt 0:00:23]} 20. Qxg7+ {[%emt 0:00:11]} ({Don't play} 20. Nxd6 Qxh6+ 21. Rxh6 Ng5 22. Nxe8 (22. Nxb7 Nxf3 23. Rg3 Kg7 $18) 22... Rxe8 $18) 20... Kxg7 {[%emt 0:00:41]} 21. Nxd6 {[%emt 0:00:30]} Reb8 {[%emt 0:00:38]} 22. c5 {[%emt 0:01:53]} Nf6 {[%emt 0:03:54]} 23. Nc3 {[%emt 0:01:44][%cal Be2c3,Bc3e4,Be4d6][%mdl 32]} Ne8 {[%emt 0:00:39]} 24. Nce4 {[%emt 0:00:17]} Nxd6 {[%emt 0:00:29]} 25. Nxd6 {[%emt 0:00:06]} Nh7 {[%emt 0:00:05]} 26. g5 {[%emt 0:01:41]} Rc8 {[%emt 0:01:01] Black is weak on the dark squares} 27. Nxc8 {[%emt 0:00:49]} Rxc8 {[%emt 0:00:02]} 28. Be4 {[%emt 0:00:33] Strongly threatening b4.} Rxc5+ {[%emt 0:00:30]} 29. Kb1 {[%emt 0:00:17]} Bf5 {[%emt 0:00:15]} 30. d6 {[%emt 0:03:07] Threatens to win with Bxf5.} Rc8 {[%emt 0:00:51]} 31. Bxf5 {[%emt 0:00:10]} gxf5 {[%emt 0:00:01][%mdl 4096] Endgame KRR-KRN} 32. Rh2 {[%emt 0:00:12]} Rd8 {[%emt 0:00:21]} 33. Rd2 {[%emt 0:00:18]} Kg6 34. Rdg2 {[%emt 0:06:21]} (34. d7 $18 {has better winning chances.}) 34... Rxd6 $16 {[%emt 0:00:40]} 35. Kc2 {[%emt 0:00:26]} ({White should play} 35. Re2 $16) 35... Nf8 {[%emt 0:00:23]} (35... f4 $11) 36. Rh1 {[%emt 0:00:18]} (36. Re1 $14) 36... Kg7 {[%emt 0:00:24]} (36... Ne6 $11) 37. Re1 {[%emt 0:01:20]} Rc6+ {[%emt 0:01:31]} 38. Kd3 {[%emt 0:00:15]} ({Better is} 38. Kd1 $16) 38... Rc5 {[%emt 0:00:17]} (38... Ne6 $11 39. Rf2 (39. Rxe5 $2 {perishes.} Nf4+ 40. Kd4 Nxg2 $19) 39... Rd6+ 40. Kc3 Rc6+ 41. Kd3 Rd6+ 42. Kc2 Nd4+ 43. Kc1 Rc6+ 44. Kd1 Rd6) 39. Ke3 {[%emt 0:01:40]} (39. b4 $14 Rd5+ 40. Kc4 Rd4+ 41. Kc3) 39... Kg6 {[%emt 0:00:55]} 40. Rh1 {[%emt 0:00:39]} Rb5 {[%emt 0:01:35]} 41. Rh6+ {[%emt 0:31:13]} Kg7 {[%emt 0:30:01]} 42. f4 {[%emt 0:02:25]} exf4+ {[%emt 0:00:28]} 43. Kxf4 {[%emt 0:00:15]} Ne6+ {[%emt 0:00:06]} 44. Ke3 {[%emt 0:05:41]} Nxg5 {[%emt 0:00:27][%mdl 64] [#] Remove Defender} 45. Rh1 {[%emt 0:00:34]} f6 {[%emt 0:00:14]} 46. Rc1 {[%emt 0:01:26]} Re5+ {[%emt 0:00:05]} 47. Kf4 {[%emt 0:00:42]} Re4+ {[%emt 0:02:56]} (47... Kf7 $11 {remains equal.}) 48. Kxf5 {[%emt 0:00:20]} Re5+ {[%emt 0:00:14]} 49. Kg4 {[%emt 0:00:15] White is more active.} Kg6 {[%emt 0:00:15]} 50. Rc4 {[%emt 0:02:08]} Ra5 {[%emt 0:01:13]} 51. b3 {[%emt 0:05:34]} Rb5 {[%emt 0:01:34] Dodges Rb4} 52. Kh4 {[%emt 0:02:20]} Kh6 {[%emt 0:00:24]} 53. Rf4 {[%emt 0:01:37]} Kg6 {[%emt 0:00:40]} 54. Rgf2 {[%emt 0:01:40]} Rb6 {[%emt 0:01:09]} 55. Rg4 {[%emt 0:02:07]} Rb5 {[%emt 0:00:35]} 56. Rff4 {[%emt 0:00:26]} Rb6 {[%emt 0:00:58] [#]} (56... Re5 $16 {was worth a try.}) 57. Rb4 $1 $18 {[%emt 0:04:35]} Rxb4 {[%emt 0:01:24]} (57... Rd6 58. Rxb7 Rd3) 58. Rxb4 {[%emt 0:00:07] KR-KN} b5 {[%emt 0:00:07]} 59. a4 {[%emt 0:00:43]} bxa4 {[%emt 0:00:53]} 60. Rxa4 {[%emt 0:00:08]} (60. bxa4 {aiming for a5.} Nf3+ 61. Kg3) 60... Nf3+ $2 {[%emt 0:00:05]} (60... Kf5 61. b4 Nf7 62. Rxa6 Ke5) 61. Kg3 {[%emt 0:02:08]} Nd2 {[%emt 0:01:31]} 62. b4 {[%emt 0:00:26][%cal Og3f4]} ({Weaker is} 62. Rxa6 Nxb3 63. Kg4 Nd4 $11) 62... Ne4+ {[%emt 0:01:04]} 63. Kf4 {[%emt 0:00:34]} Nc3 {[%emt 0:00:39]} 64. Rxa6 {[%emt 0:00:44] White threatens Ra5 and mate.} Nd5+ {[%emt 0:00:09]} 65. Kg4 $2 {[%emt 0:00:26]} (65. Ke4 {mates} Nxb4 66. Rb6 Nc2 67. Rb1 Na3 68. Rc1 Nb5 69. Kd5 Kh6 70. Rc5) 65... Nxb4 $11 {[%emt 0:00:11]} 66. Ra8 {[%emt 0:00:08]} Nc6 {[%emt 0:01:57]} 67. Ra6 {[%emt 0:00:18] Weighted Error Value: White=0.37/Black=0.43} 1/2-1/2